{"text_format":"3","workbook":"xlsx","n_sheets":1,"sheets":["Proračun izdatkov"],"not_rendered":{"charts":2,"defined_names":3},"read":"whole","date_system":"1900"}

{"sheet":"Proračun izdatkov","index":0,"n_rows":47,"n_cols":7,"rows_kept":47,"merged":[[0,1,0,4],[0,5,0,6],[16,1,16,6]]}
[null,"Proračun izdatkov",{"$nulls":3},"CONTOSO, 2013"]
[]
[]
[null," PRORAČUN ZA OSEBJE"]
{"$rows_empty":7}
[null,"STANJE","OSEBJE","PRORAČUN","DEJANSKO","RAZLIKA (EUR)","RAZLIKA (%)"]
[null,{"$f":"IFERROR('Proračun izdatkov'!$E13/'Proračun izdatkov'!$D13,\"\")","v":{"v":1.13,"d":"$1.13"}},"Pisarna",{"v":500,"d":"500.00 €"},{"v":565,"d":"565.00 €"},{"$f":"'Proračun izdatkov'!$D13-'Proračun izdatkov'!$E13","v":{"v":-65,"d":"-65.00 €"}},{"$f":"IFERROR('Proračun izdatkov'!$F$13:$F$16/'Proračun izdatkov'!$D$13:$D$16,\"\")","v":{"v":-0.13,"d":"-13%"}}]
[null,{"$f":"IFERROR('Proračun izdatkov'!$E14/'Proračun izdatkov'!$D14,\"\")","v":{"v":1.2,"d":"$1.20"}},"Trgovina",{"v":125,"d":"125.00 €"},{"v":150,"d":"150.00 €"},{"$f":"'Proračun izdatkov'!$D14-'Proračun izdatkov'!$E14","v":{"v":-25,"d":"-25.00 €"}},{"$f":"IFERROR('Proračun izdatkov'!$F$13:$F$16/'Proračun izdatkov'!$D$13:$D$16,\"\")","v":{"v":-0.2,"d":"-20%"}}]
[null,{"$f":"IFERROR('Proračun izdatkov'!$E15/'Proračun izdatkov'!$D15,\"\")","v":{"v":1,"d":"$1.00"}},"Prodajalci",{"v":100,"d":"100.00 €"},{"v":100,"d":"100.00 €"},{"$f":"'Proračun izdatkov'!$D15-'Proračun izdatkov'!$E15","v":{"v":0,"d":"0.00 €"}},{"$f":"IFERROR('Proračun izdatkov'!$F$13:$F$16/'Proračun izdatkov'!$D$13:$D$16,\"\")","v":{"v":0,"d":"0%"}}]
[null,{"$f":"IFERROR('Proračun izdatkov'!$E16/'Proračun izdatkov'!$D16,\"\")","v":{"v":0.9,"d":"$0.90"}},"Drugo",{"v":100,"d":"100.00 €"},{"v":90,"d":"90.00 €"},{"$f":"'Proračun izdatkov'!$D16-'Proračun izdatkov'!$E16","v":{"v":10,"d":"10.00 €"}},{"$f":"IFERROR('Proračun izdatkov'!$F$13:$F$16/'Proračun izdatkov'!$D$13:$D$16,\"\")","v":{"v":0.1,"d":"10%"}}]
[]
[]
[null," PRORAČUN ZA IZVAJANJE"]
{"$rows_empty":7}
[null,"STANJE","IZVAJANJE","PRORAČUN","DEJANSKO","RAZLIKA (EUR)","RAZLIKA (%)"]
[null,{"$f":"IFERROR(tblStroškiPoslovanja[[#This Row],[DEJANSKO]]/tblStroškiPoslovanja[[#This Row],[PRORAČUN]],\"\")","v":{"v":0.98,"d":"$0.98"}},"Oglaševanje",{"v":250,"d":"250.00 €"},{"v":245,"d":"245.00 €"},{"$f":"tblStroškiPoslovanja[[#This Row],[PRORAČUN]]-tblStroškiPoslovanja[[#This Row],[DEJANSKO]]","v":{"v":5,"d":"5.00 €"}},{"$f":"IFERROR(tblStroškiPoslovanja[[#This Row],[RAZLIKA (EUR)]]/tblStroškiPoslovanja[[#This Row],[PRORAČUN]],\"\")","v":{"v":0.02,"d":"2%"}}]
[null,{"$f":"IFERROR(tblStroškiPoslovanja[[#This Row],[DEJANSKO]]/tblStroškiPoslovanja[[#This Row],[PRORAČUN]],\"\")","v":{"v":1.2,"d":"$1.20"}},"Dolgovi",{"v":125,"d":"125.00 €"},{"v":150,"d":"150.00 €"},{"$f":"tblStroškiPoslovanja[[#This Row],[PRORAČUN]]-tblStroškiPoslovanja[[#This Row],[DEJANSKO]]","v":{"v":-25,"d":"-25.00 €"}},{"$f":"IFERROR(tblStroškiPoslovanja[[#This Row],[RAZLIKA (EUR)]]/tblStroškiPoslovanja[[#This Row],[PRORAČUN]],\"\")","v":{"v":-0.2,"d":"-20%"}}]
[null,{"$f":"IFERROR(tblStroškiPoslovanja[[#This Row],[DEJANSKO]]/tblStroškiPoslovanja[[#This Row],[PRORAČUN]],\"\")","v":{"v":1,"d":"$1.00"}},"Prednosti",{"v":100,"d":"100.00 €"},{"v":100,"d":"100.00 €"},{"$f":"tblStroškiPoslovanja[[#This Row],[PRORAČUN]]-tblStroškiPoslovanja[[#This Row],[DEJANSKO]]","v":{"v":0,"d":"0.00 €"}},{"$f":"IFERROR(tblStroškiPoslovanja[[#This Row],[RAZLIKA (EUR)]]/tblStroškiPoslovanja[[#This Row],[PRORAČUN]],\"\")","v":{"v":0,"d":"0%"}}]
[null,{"$f":"IFERROR(tblStroškiPoslovanja[[#This Row],[DEJANSKO]]/tblStroškiPoslovanja[[#This Row],[PRORAČUN]],\"\")","v":{"v":0.9,"d":"$0.90"}},"Potrebščine",{"v":100,"d":"100.00 €"},{"v":90,"d":"90.00 €"},{"$f":"tblStroškiPoslovanja[[#This Row],[PRORAČUN]]-tblStroškiPoslovanja[[#This Row],[DEJANSKO]]","v":{"v":10,"d":"10.00 €"}},{"$f":"IFERROR(tblStroškiPoslovanja[[#This Row],[RAZLIKA (EUR)]]/tblStroškiPoslovanja[[#This Row],[PRORAČUN]],\"\")","v":{"v":0.1,"d":"10%"}}]
[null,{"$f":"IFERROR(tblStroškiPoslovanja[[#This Row],[DEJANSKO]]/tblStroškiPoslovanja[[#This Row],[PRORAČUN]],\"\")","v":""},"Poštnina",null,null,{"$f":"tblStroškiPoslovanja[[#This Row],[PRORAČUN]]-tblStroškiPoslovanja[[#This Row],[DEJANSKO]]","v":{"v":0,"d":"0.00 €"}},{"$f":"IFERROR(tblStroškiPoslovanja[[#This Row],[RAZLIKA (EUR)]]/tblStroškiPoslovanja[[#This Row],[PRORAČUN]],\"\")","v":""}]
[null,{"$f":"IFERROR(tblStroškiPoslovanja[[#This Row],[DEJANSKO]]/tblStroškiPoslovanja[[#This Row],[PRORAČUN]],\"\")","v":""},"Najemnina ali hipoteka",null,null,{"$f":"tblStroškiPoslovanja[[#This Row],[PRORAČUN]]-tblStroškiPoslovanja[[#This Row],[DEJANSKO]]","v":{"v":0,"d":"0.00 €"}},{"$f":"IFERROR(tblStroškiPoslovanja[[#This Row],[RAZLIKA (EUR)]]/tblStroškiPoslovanja[[#This Row],[PRORAČUN]],\"\")","v":""}]
[null,{"$f":"IFERROR(tblStroškiPoslovanja[[#This Row],[DEJANSKO]]/tblStroškiPoslovanja[[#This Row],[PRORAČUN]],\"\")","v":""},"Stroški prodaje",null,null,{"$f":"tblStroškiPoslovanja[[#This Row],[PRORAČUN]]-tblStroškiPoslovanja[[#This Row],[DEJANSKO]]","v":{"v":0,"d":"0.00 €"}},{"$f":"IFERROR(tblStroškiPoslovanja[[#This Row],[RAZLIKA (EUR)]]/tblStroškiPoslovanja[[#This Row],[PRORAČUN]],\"\")","v":""}]
[null,{"$f":"IFERROR(tblStroškiPoslovanja[[#This Row],[DEJANSKO]]/tblStroškiPoslovanja[[#This Row],[PRORAČUN]],\"\")","v":""},"Davki",null,null,{"$f":"tblStroškiPoslovanja[[#This Row],[PRORAČUN]]-tblStroškiPoslovanja[[#This Row],[DEJANSKO]]","v":{"v":0,"d":"0.00 €"}},{"$f":"IFERROR(tblStroškiPoslovanja[[#This Row],[RAZLIKA (EUR)]]/tblStroškiPoslovanja[[#This Row],[PRORAČUN]],\"\")","v":""}]
[null,{"$f":"IFERROR(tblStroškiPoslovanja[[#This Row],[DEJANSKO]]/tblStroškiPoslovanja[[#This Row],[PRORAČUN]],\"\")","v":""},"Storitve",null,null,{"$f":"tblStroškiPoslovanja[[#This Row],[PRORAČUN]]-tblStroškiPoslovanja[[#This Row],[DEJANSKO]]","v":{"v":0,"d":"0.00 €"}},{"$f":"IFERROR(tblStroškiPoslovanja[[#This Row],[RAZLIKA (EUR)]]/tblStroškiPoslovanja[[#This Row],[PRORAČUN]],\"\")","v":""}]
[null,{"$f":"IFERROR(tblStroškiPoslovanja[[#This Row],[DEJANSKO]]/tblStroškiPoslovanja[[#This Row],[PRORAČUN]],\"\")","v":""},"Drugo",null,null,{"$f":"tblStroškiPoslovanja[[#This Row],[PRORAČUN]]-tblStroškiPoslovanja[[#This Row],[DEJANSKO]]","v":{"v":0,"d":"0.00 €"}},{"$f":"IFERROR(tblStroškiPoslovanja[[#This Row],[RAZLIKA (EUR)]]/tblStroškiPoslovanja[[#This Row],[PRORAČUN]],\"\")","v":""}]
[null,{"$f":"IFERROR(tblStroškiPoslovanja[[#This Row],[DEJANSKO]]/tblStroškiPoslovanja[[#This Row],[PRORAČUN]],\"\")","v":""},"Zavarovanje",null,null,{"$f":"tblStroškiPoslovanja[[#This Row],[PRORAČUN]]-tblStroškiPoslovanja[[#This Row],[DEJANSKO]]","v":{"v":0,"d":"0.00 €"}},{"$f":"IFERROR(tblStroškiPoslovanja[[#This Row],[RAZLIKA (EUR)]]/tblStroškiPoslovanja[[#This Row],[PRORAČUN]],\"\")","v":""}]
[null,{"$f":"IFERROR(tblStroškiPoslovanja[[#This Row],[DEJANSKO]]/tblStroškiPoslovanja[[#This Row],[PRORAČUN]],\"\")","v":""},"Obresti",null,null,{"$f":"tblStroškiPoslovanja[[#This Row],[PRORAČUN]]-tblStroškiPoslovanja[[#This Row],[DEJANSKO]]","v":{"v":0,"d":"0.00 €"}},{"$f":"IFERROR(tblStroškiPoslovanja[[#This Row],[RAZLIKA (EUR)]]/tblStroškiPoslovanja[[#This Row],[PRORAČUN]],\"\")","v":""}]
[null,{"$f":"IFERROR(tblStroškiPoslovanja[[#This Row],[DEJANSKO]]/tblStroškiPoslovanja[[#This Row],[PRORAČUN]],\"\")","v":""},"Telefon",null,null,{"$f":"tblStroškiPoslovanja[[#This Row],[PRORAČUN]]-tblStroškiPoslovanja[[#This Row],[DEJANSKO]]","v":{"v":0,"d":"0.00 €"}},{"$f":"IFERROR(tblStroškiPoslovanja[[#This Row],[RAZLIKA (EUR)]]/tblStroškiPoslovanja[[#This Row],[PRORAČUN]],\"\")","v":""}]
[null,{"$f":"IFERROR(tblStroškiPoslovanja[[#This Row],[DEJANSKO]]/tblStroškiPoslovanja[[#This Row],[PRORAČUN]],\"\")","v":""},"Vzdrževanje in popravila",null,null,{"$f":"tblStroškiPoslovanja[[#This Row],[PRORAČUN]]-tblStroškiPoslovanja[[#This Row],[DEJANSKO]]","v":{"v":0,"d":"0.00 €"}},{"$f":"IFERROR(tblStroškiPoslovanja[[#This Row],[RAZLIKA (EUR)]]/tblStroškiPoslovanja[[#This Row],[PRORAČUN]],\"\")","v":""}]
[null,{"$f":"IFERROR(tblStroškiPoslovanja[[#This Row],[DEJANSKO]]/tblStroškiPoslovanja[[#This Row],[PRORAČUN]],\"\")","v":""},"Sodni stroški",null,null,{"$f":"tblStroškiPoslovanja[[#This Row],[PRORAČUN]]-tblStroškiPoslovanja[[#This Row],[DEJANSKO]]","v":{"v":0,"d":"0.00 €"}},{"$f":"IFERROR(tblStroškiPoslovanja[[#This Row],[RAZLIKA (EUR)]]/tblStroškiPoslovanja[[#This Row],[PRORAČUN]],\"\")","v":""}]
[null,{"$f":"IFERROR(tblStroškiPoslovanja[[#This Row],[DEJANSKO]]/tblStroškiPoslovanja[[#This Row],[PRORAČUN]],\"\")","v":""},"Amortizacija",null,null,{"$f":"tblStroškiPoslovanja[[#This Row],[PRORAČUN]]-tblStroškiPoslovanja[[#This Row],[DEJANSKO]]","v":{"v":0,"d":"0.00 €"}},{"$f":"IFERROR(tblStroškiPoslovanja[[#This Row],[RAZLIKA (EUR)]]/tblStroškiPoslovanja[[#This Row],[PRORAČUN]],\"\")","v":""}]
[null,{"$f":"IFERROR(tblStroškiPoslovanja[[#This Row],[DEJANSKO]]/tblStroškiPoslovanja[[#This Row],[PRORAČUN]],\"\")","v":""},"Dostava",null,null,{"$f":"tblStroškiPoslovanja[[#This Row],[PRORAČUN]]-tblStroškiPoslovanja[[#This Row],[DEJANSKO]]","v":{"v":0,"d":"0.00 €"}},{"$f":"IFERROR(tblStroškiPoslovanja[[#This Row],[RAZLIKA (EUR)]]/tblStroškiPoslovanja[[#This Row],[PRORAČUN]],\"\")","v":""}]
[null,{"$f":"IFERROR(tblStroškiPoslovanja[[#This Row],[DEJANSKO]]/tblStroškiPoslovanja[[#This Row],[PRORAČUN]],\"\")","v":""},"Shramba",null,null,{"$f":"tblStroškiPoslovanja[[#This Row],[PRORAČUN]]-tblStroškiPoslovanja[[#This Row],[DEJANSKO]]","v":{"v":0,"d":"0.00 €"}},{"$f":"IFERROR(tblStroškiPoslovanja[[#This Row],[RAZLIKA (EUR)]]/tblStroškiPoslovanja[[#This Row],[PRORAČUN]],\"\")","v":""}]
[null,{"$f":"IFERROR(tblStroškiPoslovanja[[#This Row],[DEJANSKO]]/tblStroškiPoslovanja[[#This Row],[PRORAČUN]],\"\")","v":""},"Drugo",null,null,{"$f":"tblStroškiPoslovanja[[#This Row],[PRORAČUN]]-tblStroškiPoslovanja[[#This Row],[DEJANSKO]]","v":{"v":0,"d":"0.00 €"}},{"$f":"IFERROR(tblStroškiPoslovanja[[#This Row],[RAZLIKA (EUR)]]/tblStroškiPoslovanja[[#This Row],[PRORAČUN]],\"\")","v":""}]
[null,null,"Skupni stroški",{"$f":"SUBTOTAL(109,tblStroškiPoslovanja[PRORAČUN],'Proračun izdatkov'!$D$13:$D$16)","v":{"v":1400,"d":"1,400.00 €"}},{"$f":"SUBTOTAL(109,tblStroškiPoslovanja[DEJANSKO],'Proračun izdatkov'!$E$13:$E$16)","v":{"v":1490,"d":"1,490.00 €"}},{"$f":"SUBTOTAL(109,tblStroškiPoslovanja[RAZLIKA (EUR)],'Proračun izdatkov'!$F$13:$F$16)","v":{"v":-90,"d":"-90.00 €"}},{"$f":"IFERROR(SUM(tblStroškiPoslovanja[[#Totals],[RAZLIKA (EUR)]]/tblStroškiPoslovanja[[#Totals],[PRORAČUN]]),\"\")","v":{"v":-0.06428571428571428,"d":"-6%"}}]